Cogmind - Beta 9.1 @@@ ROGUE MODE // 2019.10.29 @ 21:16:49 Player: Noname Result: Destroyed by as-25931 with Assembled Rifle Performance ------------- Evolutions (0) 0 Regions Visited (2) 400 Robots Destroyed (16) 80 Value Destroyed (499) 499 Prototype IDs (0) 0 Alien Tech Used (0) 0 Bonus (0) 0 TOTAL SCORE: 979 Bonus ------- None Cogmind --------- Core Integrity 0/250 Matter 273/300 Energy 100/100 System Corruption 0% Temperature Cool (71) Location -10/Mines Parts ------- Power (1) Propulsion (2) Aluminum Leg Utility (2) Large Storage Unit Weapon (2) Rocket Launcher Inventory (10) Ion Engine Aluminum Leg Aluminum Leg Small Battery (100) Medium Matter Pod (100) Particle Gun Improved Light Cannon Improved Light Cannon Peak State ------------ Power Ion Engine Propulsion Aluminum Leg Aluminum Leg Utility Large Storage Unit High-powered Tractor Beam Weapon Particle Gun Improved Light Cannon Inventory Ion Engine Aluminum Leg Aluminum Leg Small Battery Particle Gun Assault Rifle Improved Light Cannon Improved Light Cannon [Rating: 11] Favorites ----------- Power Ion Engine Engine Ion Engine Propulsion Aluminum Leg Leg Aluminum Leg Utility High-powered Tractor Beam Device High-powered Tractor Beam Storage Small Storage Unit Weapon Improved Light Cannon Energy Gun Particle Gun Ballistic Cannon Improved Light Cannon Launcher Rocket Launcher Build | -11 -10 -10 ------- Run | Scr Mat Min Slots Evolved . | . . . Power . | . . . Propulsion . | . . . Utility . | . . . Weapon . | . . . Parts Attached 10 | . 8 2 Power . | . . . Engine . | . . . Core . | . . . Reactor . | . . . Propulsion 2 | . 2 . Treads . | . . . Leg 2 | . 2 . Wheel . | . . . Hover . | . . . Flight . | . . . Utility 3 | . 3 . Device 2 | . 2 . Storage 1 | . 1 . Processor . | . . . Hackware . | . . . Protection . | . . . Artifact . | . . . Weapon 5 | . 3 2 Energy Gun 2 | . 1 1 Energy Cannon . | . . . Ballistic Gun . | . . . Ballistic Cannon 2 | . 2 . Launcher 1 | . . 1 Special Weapon . | . . . Impact Weapon . | . . . Slashing Weapon . | . . . Piercing Weapon . | . . . Special Melee Weapon . | . . . Unidentified Prototypes . | . . . Parts Lost 6 | . . 6 Power 1 | . . 1 Propulsion 1 | . . 1 Utility 1 | . . 1 Weapon 3 | . . 3 Highest Loss Streak 6 | . . 6 Average Slot Usage (%) 97 | . 97 97 Engine 14 | . 14 14 Leg 27 | . 28 26 Device 11 | . 11 12 Storage 14 | . 14 14 Energy Gun 15 | . 15 14 Ballistic Cannon 12 | . 12 14 Naked Turns . | . . . Heaviest Build 29 | 12 29 29 Greatest Support 20 | 20 20 20 Greatest Overweight (x) 1 | . 1 1 Average Overweight (x) . | . . 1 Largest Inventory Capacity 10 | 6 10 10 Average Capacity 7 | 6 7 10 Most Carried 10 | 6 10 10 Average Carried 7 | 6 6 9 Final Capacity 10 | 6 10 10 Final Carried 10 | 6 10 8 Class Distribution -------------------- 100% | Mutant Dominant Class ---------------- Mutant | -10/Materials Mutant | -10/Mines Resources | -11 -10 -10 ----------- Run | Scr Mat Min Matter Collected 525 | 200 200 125 Remotely 325 | . 200 125 Salvage Created 431 | . 412 19 Parts 31 | . 29 2 Haulers Intercepted . | . . . Recyclers Shooed . | . . . Parts Field Recycled . | . . . Retrieved Matter . | . . . Parts Self-Destructed . | . . . Prevented . | . . . Kills | -11 -10 -10 ------- Run | Scr Mat Min Combat Hostiles Destroyed 15 | . 11 4 Guns 5 | . 5 . Cannons 8 | . 6 2 AOE 2 | . . 2 Classes Destroyed 5 | . 2 3 Watcher 1 | . 1 . Swarmer 2 | . . 2 Grunt 11 | . 11 . Demolisher 1 | . . 1 Assembled 1 | . . 1 Best Kill Streak 8 | . 8 3 Combat Bots Only 7 | . 7 3 Max Kills in Single Turn 2 | . 1 2 Gunslinging . | . . . Exploded 2 | . . 2 Melee . | . . . Uniques/NPCs Destroyed . | . . . Combat | -11 -10 -10 -------- Run | Scr Mat Min Damage Taken 837 | . 229 608 Core 251 | . 72 179 Absorbed by Shields . | . . . Core Remaining (%) 100 | 100 . . Volleys Fired 37 | . 28 9 Largest 2 | . 2 2 Hottest 104 | . 104 104 Shots Fired 66 | . 50 16 Gun 27 | . 20 7 Cannon 37 | . 30 7 Launcher 2 | . . 2 Special . | . . . Kinetic 37 | . 30 7 Thermal 27 | . 20 7 Explosive 2 | . . 2 Electromagnetic . | . . . Robot Hit Streak 7 | . 5 7 Robot Miss Streak 4 | . 4 4 Penetration Max . | . . . Secondary Targets . | . . . Shots Hit Robots 39 | . 30 9 Core Hits 20 | . 15 5 Critical Hits 1 | . 1 . Critical Kills . | . . . Critical Parts Destroyed 1 | . 1 . Melee Attacks . | . . . Impact . | . . . Slashing . | . . . Piercing . | . . . Sneak Attacks . | . . . Combat Hostiles . | . . . Follow-up Attacks . | . . . Damage Inflicted 818 | . 546 272 Guns 313 | . 246 67 Cannons 390 | . 300 90 Explosions 115 | . . 115 Melee . | . . . Ramming . | . . . Kinetic 390 | . 300 90 Thermal 313 | . 246 67 Explosive 115 | . . 115 Electromagnetic . | . . . Impact . | . . . Slashing . | . . . Piercing . | . . . Highest Corruption . | . . . Average Corruption . | . . . Corruption Purged . | . . . Overload Shots . | . . . Overflow Damage . | . . . Projectiles . | . . . Explosions . | . . . Melee . | . . . Knockbacks 3 | . 2 1 Impact . | . . . Kinetic 3 | . 2 1 Secondary . | . . . Self-Inflicted Damage . | . . . Shots . | . . . Rammed . | . . . Targets Rammed . | . . . Kicked . | . . . Crushed . | . . . Highest Temperature 306 | . 306 116 Average Temperature 103 | . 115 58 Received Heat Transfer 149 | . 129 20 Effects 6 | . 6 . Energy Bleed 3 | . 3 . Interference 3 | . 3 . Siege Activations . | . . . Robots Corrupted . | . . . Combat Hostiles . | . . . Parts Fried . | . . . Impact Corruptions . | . . . Robots Melted . | . . . Combat Hostiles . | . . . Parts Melted . | . . . Heat Transferred 740 | . 592 148 Parts Sabotaged . | . . . Parts Stolen . | . . . Parts Stripped . | . . . Power Chain Reactions . | . . . Missiles Intercepted . | . . . Alert | -11 -10 -10 ------- Run | Scr Mat Min Peak Influence 317 | . 317 55 Average Influence 122 | . 142 44 Maximum Alert Level 1 | . 1 . Low Security (%) 76 | . . . Level 1 23 | . . . Level 2 . | . . . Level 3 . | . . . Level 4 . | . . . Level 5 . | . . . High Security . | . . . Max Security . | . . . Squads Dispatched 4 | . 4 . Investigation 1 | . 1 . Extermination . | . . . Reinforcement 3 | . 3 . Assault . | . . . Garrison . | . . . Intercept . | . . . Construction Impeded . | . . . Haulers Reinforced . | . . . Stealth | -11 -10 -10 --------- Run | Scr Mat Min Distress Signals 2 | . 2 . Communications Jammed . | . . . Distress Signals . | . . . Times Spotted 31 | . 18 13 Peak Tracking Total 11 | . 4 11 Tactical Retreats . | . . . Traps | -11 -10 -10 ------- Run | Scr Mat Min Traps Triggered 1 | . 1 . Indirectly . | . . . Trap Hack Attempts . | . . . Triggered . | . . . Disarmed . | . . . Reprogrammed . | . . . Reused . | . . . Traps Extracted . | . . . Installed . | . . . Triggered . | . . . Machines | -11 -10 -10 ---------- Run | Scr Mat Min Machines Disabled 1 | . 1 . Max in Single Turn 1 | . 1 . Machines Sabotaged . | . . . Garrisons Compromised . | . . . Overloaded Fab Kills . | . . . Fab Network Shutdowns . | . . . Hacking | -11 -10 -10 --------- Run | Scr Mat Min Machines Accessed 1 | . 1 . Terminals . | . . . Fabricators . | . . . Repair Stations . | . . . Recycling Units 1 | . 1 . Scanalyzers . | . . . Garrison Access . | . . . Total Hacks 2 | . 2 . Successful . | . . . Failed 2 | . 2 . Catastrophic . | . . . Database Lockouts . | . . . Manual . | . . . Terminals . | . . . Fabricators . | . . . Repair Stations . | . . . Recycling Units 2 | . 2 . Scanalyzers . | . . . Garrison Access . | . . . Terminal Hacks . | . . . Fabricator Hacks . | . . . Repair Station Hacks . | . . . Recycling Unit Hacks . | . . . Scanalyzer . | . . . Garrison Access Hacks . | . . . Unauthorized Hacks . | . . . Terminals . | . . . Fabricators . | . . . Repair Stations . | . . . Recycling Units . | . . . Scanalyzers . | . . . Garrison Access . | . . . Data Cores Recovered . | . . . Used . | . . . Hacking Detections 1 | . 1 . Full Trace Events . | . . . Feedback Events . | . . . Feedback Blocked . | . . . Robot Schematics Acquired . | . . . Robots Built . | . . . Matter . | . . . Time . | . . . Total Robot Build Rating . | . . . Part Schematics Acquired . | . . . Parts Built . | . . . Matter . | . . . Time . | . . . Total Part Build Rating . | . . . Parts Repaired . | . . . Time . | . . . Parts Recycled . | . . . Recycled Matter . | . . . Retrieved Matter . | . . . Retrieved Components . | . . . Parts Scanalyzed . | . . . Part Schematics Acquired . | . . . Parts Damaged . | . . . Bothacking | -11 -10 -10 ------------ Run | Scr Mat Min Used RIF Installer . | . . . Robots Hacked . | . . . Non-combat . | . . . Combat . | . . . Robot Hacks Applied . | . . . Relay Couplers Released . | . . . Robots Rewired . | . . . Allies Hacked . | . . . Hacks Repelled . | . . . Allies | -11 -10 -10 -------- Run | Scr Mat Min Total Allies . | . . . Largest Group . | . . . Highest-Rated Group . | . . . Highest-Rated Ally . | . . . Total Orders . | . . . Ally Attacks . | . . . Total Damage . | . . . Kills . | . . . Allies Corrupted . | . . . Allies Melted . | . . . Intel | -11 -10 -10 ------- Run | Scr Mat Min Robot Analysis Total . | . . . Derelict Logs Recovered . | . . . Drone Launches . | . . . Drone Recoveries . | . . . Exploration | -11 -10 -10 ------------- Run | Scr Mat Min Turns Passed 586 | 3 469 114 Spaces Moved 321 | 3 266 52 Core . | . . . Treads . | . . . Legs 321 | 3 266 52 Wheels . | . . . Hover . | . . . Flight . | . . . Fastest Speed 120 | 120 120 150 Average Speed 134 | 120 131 150 Slowest Speed 150 | 120 150 150 Overloaded Moves . | . . . Propulsion Burnouts . | . . . Robots Hopped . | . . . Cave-ins Triggered . | . . . Exploration Rate (%) 23 | 2 48 19 Regions Visited 2 Branch Regions 1 Pre-discovered Areas . | . . . Known Exits Taken . | . . . Unknown Exits Taken 2 | 1 1 . Scrap Searched 1 | . . 1 Spaces Dug . | . . . Terrain Destroyed 9 | . 2 7 Melee . | . . . Projectile 2 | . 2 . AOE 7 | . . 7 Actions | -11 -10 -10 --------- Run | Scr Mat Min Total 415 | 2 339 74 Wait 27 | . 18 9 Move 319 | 2 265 52 Hop . | . . . Pick Up 10 | . 9 1 Fast Attach 3 | . 3 . Attach 2 | . . 2 Detach . | . . . Swap 5 | . 5 . Drop 12 | . 11 1 Fire 37 | . 28 9 Melee . | . . . Ram . | . . . Kick . | . . . Crush . | . . . Escape Stasis . | . . . Rewire . | . . . Trap . | . . . Miscellaneous . | . . . Route ------- -11/Scrapyard -10/Materials -10/Mines History --------- Turn | Location | Event 1 | -11/Scrapyard | Discovered new exit (range 2) 4 | -11/Scrapyard | Entered Materials 52 | -10/Materials | Discovered new exit (range 9) 302 | -10/Materials | Build established: Mutant 322 | -10/Materials | Destroyed 7 combat bots 473 | -10/Materials | Entered Mines 490 | -10/Mines | Received a Rocket Launcher from a helpful Derelict 533 | -10/Mines | Assembled infested the area 578 | -10/Mines | Core integrity fell below 50% 587 | -10/Mines | Core integrity fell below 20% 587 | -10/Mines | Destroyed by as-25931 with Assembled Rifle Last Messages --------------- 00565_ Acquired 1 matter. 00565_ U-05 Engineer lays Concrete. 00566_ K-01 Serf destroyed. 00568_ Acquired 4 matter. 00568_ U-05 Engineer lays Concrete. 00568_ R-06 Scavenger collects Sml. Matter Pod. 00569_ U-05 Engineer builds a Wall. 00573_ R-06 Scavenger collects Wheel. 00576_ Hpw. Tractor Beam destroyed. 00577_ U-05 Engineer lays Concrete. 00577_ Aluminum Leg destroyed. 00578_ The unstable cave ceiling collapses. 00580_ R-06 Scavenger destroyed. 00581_ The unstable cave ceiling collapses. 00581_ Destroyed Asb. Hover Unit. 00581_ as-36824 destroyed. 00582_ Imp. Light Cannon destroyed. 00582_ Particle Gun destroyed. 00586_ Ion Engine destroyed. 00587_ S-10 Pest destroyed. Map ----- +----------------------------------------------------+ | ????????????????????????????????????????? | | ????????????????????????????????????????? | | ????????????????????????????????????????? | | ????????????????????????????????????????? | | ????????????????????????????????????????? | | ????????????????????????????????????????? | | ????????????????????????????????????????? | | ????????????????????????????????????????? | | ????????????????????????????????????????? | | ????????????????????????????????????????? | | ???????????????? ?????????????????????? | | ????????????##?? ????????????????????? | | ????????? ?# ????????????????????? | | ??????? # ????????????????????? | | ??????? ????????????????????? | | ???????# #????????????????????? | | ??????## #????????????????????? | | ????### #????????????????????? | | ???## #????????????????????? | | ???? s ?????????????????????? | | ?????? % ?????????????????????? | | ????????% #?????????????????????? | | ?????????? ??????????????????????? | | ???????????? ??????????????????????? | | ?????????????? #??????????????????????? | | ???????????????#@##?????????????????????? | | ??# ??????#####aa##?#??????????????????? | | ??# ???# # # #??????? ?????????? | | ???# ## ]a# ### ?????????? | | ????# # =aa !%%=| ??????????? | | ????## = ####= % ?????????? | | ?????# # ## a#???????? ??????????? | | ?????# # # #????????????????????? | | ?????## ## # ##???????????????????? | | ??????####?###### ## ##??????????????? | | ??????????###### #??????????????? | | ????###???# ] = #??????????????? | | ???## #??# ]! #?????????????? | | ???# ### #### ??????????? | | ???# #??# ?????????? | | ???# #??## ## ?????????? | | ???# ####????# ##?#######?????????? | | ???## #????????###??????????????????? | | ????##### #?????????????????????????????? | | ????????# ###???????????????????????????? | | ????????# #?##########????????????????? | | ????????### #?# #????????????????? | | ??????????# ### #????????????????? | | ??????????#] #????????????????? | | ??????????##### #????????????????? | +----------------------------------------------------+ Best States ------------- Heat Dissipation 25 Energy Generation 10 Energy Capacity 250 Matter Stores 300 Matter Capacity 300 Sight Range 16 Terrain Scan Density 10 Evasion (%) 40 Item Schematics ----------------- None Robot Schematics ------------------ None Fabricated ------------ Nothing Alien Tech Used ----------------- None Achievements -------------- None Challenges ------------ None Game ------ Seed DiametricGravityTendrils Manual? 0 Play Time 00:11:11 Cumulative 23.9 hours Start 2019.10.29 @ 21:07:55 End 2019.10.29 @ 21:16:49 Sessions 1 Manual Loads 0 Difficulty Rogue Special Mode None Game No. 19 Rogue 13 Adventurer 3 Explorer 0 Win Type - Total 0 Types 0/0/0/0/0/0/0 Lore% 15 Gallery% 44 Achievement% 30 Wizard Run 0 Options --------- ASCII 0 Keyboard 1 Movement Vi Keybinds 0 Fullscreen 2 Font 18/Terminus Map View 76x50 Tactical HUD 1 Map Filters NONE Filters NONE Steam 1 RUN: e3aecdc0-e594-4bc9-921f-0f467fc5b40a